bitfinex-derivatives/quotes_ETHF0:USTF0_20240829
["timestamp","ask_amount","ask_price","bid_price","bid_amount"]
[1724945839603,12.23013598,2591.7,2591.1,3.21113952]
[1724945839796,0.38572,2591.6,2591.1,3.21113952]
[1724945840297,4.17751321,2591.5,2591.1,3.21113952]
[1724945841088,4.56325321,2591.5,2591.1,3.21113952]
[1724945841289,7.77105321,2591.5,2591.1,0.00333952]
[1724945841488,0.6954,2591.4,2591.1,0.00333952]
[1724945841703,5.17214665,2591.4,2591.1,0.00333952]
[1724945842396,5.55789665,2591.4,2591.1,0.00333952]
[1724945842690,0.38578,2591.2,2591.1,0.00333952]
[1724945843094,8.68550805,2591.2,2591.1,0.00333952]
[1724945843493,8.29972805,2591.2,2591.1,0.00333952]
[1724945843688,4.44052805,2591.2,2591.1,0.00333952]
[1724945843893,4.44052805,2591.2,2591.1,13.45613952]
[1724945843894,3.45276537,2591.2,2591.1,13.45613952]
[1724945844206,0.00578592,2591.7,2591.3,0.38576]
[1724945844387,0.00578592,2591.7,2591.4,3.2078]
[1724945844586,4.25753736,2591.6,2591.5,0.38573]
[1724945844888,4.42,2592.8,2591.6,0.96431]
[1724945845188,4.25753736,2592.6,2592.4,0.3856]
[1724945845390,4.25753736,2592.6,2592.2,3.2078]
[1724945845391,4.25753736,2592.6,2592.3,40.8]
[1724945845688,4.25753736,2592.6,2591.4,1.62737]
[1724945845689,0.38558,2592.6,2592.0,0.38566]
[1724945845885,4.77987844,2592.5,2592.0,0.00578592]
[1724945846089,0.38561,2592.4,2592.0,0.00578592]
[1724945846291,4.39428844,2592.5,2592.0,0.39144592]
[1724945846292,4.77988844,2592.5,2592.0,0.39144592]
[1724945846590,4.15283796,2592.3,2592.1,3.2078]
[1724945846791,3.37696796,2592.4,2592.3,0.38562]
[1724945847094,5.92e-06,2592.6,2592.5,0.38559]
[1724945847298,5.92e-06,2592.6,2592.5,4.55737]
[1724945847503,5.92e-06,2592.6,2592.5,14.41497]
[1724945847996,5.92e-06,2592.6,2592.5,13.45099]
[1724945849690,5.92e-06,2592.6,2592.5,14.41497]
[1724945849899,1.3604,2594.2,2592.9,0.9638]
[1724945849900,0.701,2594.2,2592.9,0.9638]
[1724945850197,0.38536,2594.1,2593.6,3.2078]
[1724945850400,4.41860453,2593.9,2593.6,3.2078]
[1724945850596,4.41860453,2594.1,2593.6,3.2078]
[1724945850799,0.00578592,2594.1,2593.9,3.2078]
[1724945850995,4.31532403,2594.1,2593.9,3.2078]
[1724945851202,4.31532403,2594.1,2593.9,3.59318]
[1724945851400,0.00578592,2594.1,2593.9,3.59318]
[1724945851699,4.06811788,2594.0,2593.9,3.2078]
[1724945852297,4.06811788,2594.0,2593.6,3.59900592]
[1724945852499,4.06811788,2594.0,2593.7,40.8]
[1724945852794,4.06811788,2594.0,2593.9,3.2078]
[1724945853000,4.06811788,2594.0,2593.9,3.59318]
[1724945853205,4.06811788,2594.0,2593.7,41.1854]
[1724945853893,4.06811788,2594.0,2593.7,40.8]
[1724945854402,0.00578592,2594.1,2593.9,3.2078]
[1724945854799,4.07638995,2594.0,2593.9,3.59317]
[1724945855003,0.00578592,2594.1,2594.0,0.38537]
[1724945855305,0.00578592,2594.1,2593.9,7.44837]
[1724945855506,0.00578592,2594.1,2594.0,0.38537]
[1724945856196,0.39113592,2594.1,2593.9,3.2078]
[1724945856392,4.12841978,2594.1,2593.7,40.8]
[1724945856599,4.12841978,2594.1,2593.8,0.38539]
[1724945857099,4.12841978,2594.1,2593.7,40.8]
[1724945857100,0.38537,2594.0,2593.7,40.8]
[1724945857300,4.51377978,2594.1,2593.7,41.1854]
[1724945857507,4.12263386,2593.9,2593.7,40.8]
[1724945857695,4.6802112,2594.0,2593.7,40.8]
[1724945858097,0.38537,2594.0,2593.7,40.8]
[1724945858295,0.00578592,2594.1,2593.6,0.39119592]
[1724945858296,4.6802312,2593.9,2593.6,0.00578592]
[1724945858500,0.38541,2593.7,2593.6,0.00578592]
[1724945858898,7.82285154,2593.7,2593.2,3.2078]
[1724945859101,0.38544,2593.5,2593.2,3.2078]
[1724945859305,0.38543,2593.6,2593.2,3.59328]
[1724945859508,0.38544,2593.5,2593.2,3.2078]
[1724945859702,4.41225332,2593.5,2593.2,3.2078]
[1724945860008,4.79768332,2593.6,2593.2,3.2078]
[1724945860205,0.38546,2593.4,2593.2,3.2078]
[1724945860608,4.42158991,2593.3,2593.2,3.2078]
[1724945861109,4.80705991,2593.3,2593.2,3.2078]
[1724945861515,0.38547,2593.3,2593.2,3.2078]
[1724945861805,8.42616902,2593.3,2593.2,3.2078]
[1724945862011,15.38984902,2593.3,2593.2,3.2078]
[1724945862809,15.38984902,2593.3,2593.1,0.00578592]
[1724945862810,2.31292,2593.2,2593.1,0.00578592]
[1724945863111,0.38556,2592.7,2592.2,3.59343]
[1724945863310,5.7871,2593.1,2592.5,3.2078]
[1724945863506,5.7871,2593.1,2592.2,3.2078]
[1724945863507,4.60294149,2592.6,2592.2,3.2078]
[1724945863706,4.07147028,2593.0,2592.2,3.59342]
[1724945863898,5.7871,2593.1,2592.4,0.38559]
[1724945864106,5.7871,2593.1,2592.6,0.38557]
[1724945864107,0.00578592,2593.0,2592.6,0.38557]
[1724945864407,4.0772562,2593.0,2592.9,3.2078]
[1724945864914,0.00578592,2593.0,2592.9,7.45013]
[1724945865206,4.44,2593.7,2592.9,7.45013]
[1724945865207,0.38541,2593.7,2593.2,0.38548]
[1724945865411,4.44,2593.9,2593.1,0.38549]
[1724945865608,4.26833645,2593.4,2593.0,3.2078]
[1724945865808,1.71757,2594.0,2593.3,3.2078]
[1724945866010,0.38538,2593.9,2593.4,0.38544]
[1724945866207,4.26833645,2593.7,2593.4,0.38544]
[1724945866402,4.26833645,2593.8,2593.5,0.38544]
[1724945866706,4.04931097,2593.6,2593.3,3.59326]
[1724945866907,4.04931097,2593.6,2593.4,0.38545]
[1724945867113,0.39117592,2593.9,2593.4,0.38545]
[1724945867314,4.04931097,2593.5,2593.4,0.38545]
[1724945867714,0.39117592,2593.9,2593.5,0.38544]
[1724945867910,0.00578592,2593.9,2593.3,3.2078]
[1724945868117,4.16834601,2593.8,2593.3,3.2078]
[1724945868414,4.16834601,2593.8,2593.7,0.38541]
[1724945868615,0.00578592,2593.9,2593.8,0.38539]
[1724945868809,0.00578592,2593.9,2593.8,4.24059]
[1724945869007,0.00578592,2593.9,2593.8,10.24059]
[1724945869916,0.00578592,2593.9,2593.8,3.8552]
[1724945870121,0.00578592,2593.9,2593.8,10.24059]
[1724945870512,0.00578592,2593.9,2593.8,4.24059]
[1724945871416,0.00578592,2593.9,2593.8,10.24059]
[1724945871609,4.6409,2594.7,2594.4,0.3853]
[1724945871809,3.959,2594.7,2594.1,3.2078]
[1724945872020,5.1393,2595.1,2594.6,0.38527]
[1724945872021,1.08452,2595.1,2594.6,0.38527]
[1724945872216,1.08452,2595.1,2594.6,3.2078]
[1724945872419,4.33985181,2595.0,2594.6,0.38527]
[1724945872724,4.72507181,2595.0,2594.6,0.38527]
[1724945873216,4.33985181,2595.0,2594.6,3.2078]
[1724945873422,0.38525,2594.8,2594.6,3.2078]
[1724945873621,4.33985181,2595.0,2594.6,3.2078]
[1724945873622,0.38524,2594.9,2594.6,3.2078]
[1724945874021,4.03614531,2594.8,2594.6,3.2078]
[1724945874607,4.42139531,2594.8,2594.5,0.00578592]
[1724945874807,0.38524,2594.9,2594.5,0.00578592]
[1724945875013,4.3683523,2594.7,2594.5,0.39107592]
[1724945875413,0.38524,2594.9,2594.6,0.38528]
[1724945875825,4.29946076,2594.8,2594.6,0.38526]
[1724945876024,3.59302,2595.0,2594.7,0.38526]
[1724945876215,3.2078,2595.0,2594.5,0.00578592]
[1724945876417,4.29946076,2594.9,2594.8,0.38525]
[1724945876724,4.29946076,2594.9,2594.6,4.17098]
[1724945876725,0.00578592,2595.1,2594.9,0.38523]
[1724945876922,0.00578592,2595.1,2594.8,0.38524]
[1724945877115,0.00578592,2595.1,2594.9,0.38523]
[1724945877426,0.00578592,2595.1,2594.6,3.2078]
[1724945877625,0.00578592,2595.1,2594.9,0.38523]
[1724945877923,0.00578592,2595.1,2594.8,0.38524]
[1724945877924,0.39099592,2595.1,2594.8,0.38524]
[1724945878119,0.00578592,2595.1,2594.6,3.2078]
[1724945878318,0.38528,2594.6,2594.5,0.00578592]
[1724945879616,4.55404735,2594.6,2594.5,0.00578592]
[1724945880309,4.16876735,2594.6,2594.5,0.39107592]
[1724945880518,3.9464,2594.8,2594.5,0.00578592]
[1724945880519,1.12385,2594.8,2594.5,0.00578592]
[1724945880721,4.33165,2594.8,2594.5,0.39107592]
[1724945880921,0.38528,2594.6,2594.5,0.00578592]
[1724945882827,8.33179034,2594.6,2594.5,0.00578592]
[1724945883133,13.20099034,2594.6,2594.5,0.00578592]
[1724945883827,4.09211034,2594.6,2594.5,0.00578592]
[1724945884028,0.38524,2594.9,2594.6,0.38527]
[1724945884426,0.38525,2594.8,2594.5,3.59886592]
[1724945884625,4.13183321,2594.8,2594.6,0.38527]
[1724945884824,0.38524,2594.9,2594.6,0.38527]
[1724945885016,0.38525,2594.8,2594.6,0.38527]
[1724945885223,4.51708321,2594.8,2594.5,3.21358592]
[1724945885423,0.38526,2594.8,2594.5,3.59886592]
[1724945885729,0.38526,2594.8,2594.5,3.21358592]
[1724945885926,0.38524,2594.9,2594.6,0.38527]
[1724945886127,0.38525,2594.8,2594.6,0.38527]
[1724945886331,4.76939867,2594.9,2594.5,3.21358592]
[1724945886517,4.38415867,2594.9,2594.7,0.38525]
[1724945886718,4.69602953,2595.0,2594.7,0.38525]
[1724945886932,0.38523,2594.9,2594.6,0.38528]
[1724945887136,3.59303,2595.0,2594.7,0.38526]
[1724945887430,4.69603953,2594.9,2594.7,0.38526]
[1724945887631,0.38525,2594.8,2594.5,3.59886592]
[1724945887829,0.38525,2594.8,2594.5,3.21358592]
[1724945888031,4.69604953,2594.9,2594.6,0.38527]
[1724945888229,4.69604953,2594.9,2594.7,0.38526]
[1724945888734,4.31080953,2594.9,2594.7,0.38525]
[1724945889234,0.38525,2594.8,2594.6,0.38527]
[1724945889627,4.69604953,2594.9,2594.7,0.38526]
[1724945889827,4.69604953,2594.9,2594.6,0.38527]
[1724945890026,4.69604953,2594.9,2594.7,0.38526]
[1724945890234,4.31080953,2594.9,2594.7,0.38526]
[1724945890535,4.69604953,2594.9,2594.7,0.38526]
[1724945890734,0.38523,2594.9,2594.7,0.38526]
[1724945891825,0.38524,2594.9,2594.5,3.21358592]
[1724945892025,0.38524,2594.9,2594.7,0.38526]
[1724945892235,3.2078,2595.0,2594.5,3.21358592]
[1724945892433,4.18669511,2594.8,2594.6,0.38526]
[1724945892631,4.80454089,2594.9,2594.7,0.38526]
[1724945892837,0.38523,2594.9,2594.7,0.38525]
[1724945893039,0.38525,2594.8,2594.6,0.38527]
[1724945893233,4.80454089,2594.8,2594.6,0.38527]
[1724945893443,0.38525,2594.8,2594.6,0.38527]
[1724945893830,0.38524,2594.9,2594.7,0.38525]
[1724945894035,3.2078,2595.0,2594.5,3.81002524]
[1724945894338,4.45591887,2594.9,2594.8,0.38524]
[1724945894637,0.39099592,2595.1,2595.0,0.38522]
[1724945894638,0.00578592,2595.1,2595.0,0.38522]
[1724945895030,0.00578592,2595.1,2595.0,4.23882]
[1724945895241,0.00578592,2595.1,2595.0,0.38522]
[1724945895538,0.39099592,2595.1,2594.9,0.38523]
[1724945895931,0.96305,2595.0,2594.7,0.59644416]
[1724945896133,0.38525,2594.9,2594.7,0.38526]
[1724945896532,0.38522,2595.0,2594.8,0.38524]
[1724945896735,0.96880592,2595.1,2594.5,3.21358592]
[1724945896941,0.38525,2594.8,2594.6,0.98169656]
[1724945897137,0.38525,2594.8,2594.6,0.38526]
[1724945897332,0.38526,2594.7,2594.6,0.59646201]
[1724945897540,4.40392127,2594.7,2594.5,4.19532793]
[1724945897829,0.38528,2594.6,2594.5,3.21358592]
[1724945898035,0.38526,2594.7,2594.5,0.39106592]
[1724945898231,0.38526,2594.7,2594.5,0.00578592]
[1724945898232,0.38528,2594.6,2594.5,0.00578592]
[1724945898536,4.55628,2594.6,2594.5,0.00578592]
[1724945898736,9.24296884,2594.6,2594.5,0.00578592]
[1724945900139,12.45076884,2594.6,2594.5,0.00578592]
[1724945900340,7.63316884,2594.6,2594.5,0.00578592]
[1724945900938,15.78076884,2594.6,2594.5,0.00578592]
[1724945904047,14.81756884,2594.6,2594.5,0.00578592]
[1724945904237,4.04008884,2594.6,2594.5,0.39107592]
[1724945904439,0.7105,2594.9,2594.8,0.38525]
[1724945904637,0.00578592,2595.1,2595.0,0.38522]
[1724945904838,0.39099592,2595.1,2594.7,3.2078]
[1724945905141,7.54201785,2595.0,2594.8,0.596137]
[1724945905345,7.54201785,2595.0,2594.6,0.596137]
[1724945905346,3.33,2595.0,2594.6,0.596137]
[1724945905542,3.33,2595.0,2594.9,0.38523]
[1724945905741,0.00578592,2595.1,2594.9,0.38523]
[1724945905948,0.00578592,2595.1,2594.8,0.38524]
[1724945906239,7.41830901,2595.0,2594.6,0.38527]
[1724945906438,7.41830901,2595.0,2594.7,0.59631738]
[1724945906633,7.41830901,2595.0,2594.9,0.38523]
[1724945907244,4.21050901,2595.0,2594.9,0.38523]
[1724945907442,4.21050901,2595.0,2594.9,4.23883]
[1724945907644,0.00578592,2595.1,2595.0,0.38522]
[1724945908141,0.00578592,2595.1,2595.0,4.23882]
[1724945908342,0.00578592,2595.1,2595.0,3.8536]
[1724945908846,0.38522,2595.0,2594.7,41.65700902]
[1724945909042,0.38522,2595.0,2594.8,0.59620106]
[1724945909237,4.66399843,2594.9,2594.6,0.38527]
[1724945909441,4.66399843,2594.9,2594.7,0.59641703]
[1724945909642,4.66399843,2594.9,2594.6,0.38527]
[1724945909834,4.66399843,2594.9,2594.7,0.59647346]
[1724945910038,4.27876843,2594.9,2594.7,0.38526]
[1724945910239,4.27876843,2594.9,2594.8,0.38525]
[1724945910446,4.66399843,2594.9,2594.8,0.59647067]
[1724945910843,4.27876843,2594.9,2594.8,0.59647067]
[1724945911453,3.2078,2595.0,2594.9,0.38523]
[1724945911652,3.2078,2595.0,2594.9,0.85743551]
[1724945911846,3.2078,2595.0,2594.9,1.83911082]
[1724945912442,0.00578592,2595.1,2595.0,0.38522]
[1724945912642,0.00578592,2595.1,2595.0,1.83910082]
[1724945912838,4.34665883,2595.1,2595.0,1.83910082]
[1724945913040,4.73185883,2595.1,2595.0,1.45388082]
[1724945913551,11.91545883,2595.1,2595.0,1.45388082]
[1724945913750,16.08626883,2595.1,2595.0,0.59644531]
[1724945914146,11.26965883,2595.1,2595.0,0.59644531]
[1724945914344,4.34665883,2595.1,2595.0,0.59644531]
[1724945914655,4.34665883,2595.1,2595.0,1.8392527]
[1724945914951,4.73185883,2595.1,2594.9,1.37353131]
[1724945915156,4.73185883,2595.1,2595.0,1.45364136]
[1724945915647,7.93965883,2595.1,2595.0,1.45364136]
[1724945915856,7.93965883,2595.1,2595.0,1.45399937]
[1724945916043,15.12325883,2595.1,2595.0,1.45399937]
[1724945916242,16.08626883,2595.1,2595.0,1.45401288]
[1724945916454,16.08626883,2595.1,2595.0,0.59649318]
[1724945917848,1.34842,2594.7,2594.6,0.98831131]
[1724945918159,1.34848,2594.6,2594.5,0.00578592]
[1724945918347,6.74968,2594.6,2594.5,1.46034771]
[1724945918549,11.07542644,2594.6,2594.5,1.46034771]
[1724945919260,11.07542644,2594.6,2594.5,1.46024678]
[1724945919555,11.07542644,2594.6,2594.5,0.60250678]
[1724945920352,11.07542644,2594.6,2594.5,0.60255986]
[1724945922850,17.07542644,2594.6,2594.5,0.00578592]
[1724945923053,17.07542644,2594.6,2594.0,0.98831131]
[1724945923054,0.38535,2594.1,2594.0,0.98831131]
[1724945923259,3.59315,2594.1,2594.0,1.45488113]
[1724945923557,8.01078939,2594.1,2594.0,1.45488113]
[1724945923753,8.01078939,2594.1,2594.0,0.59683647]
[1724945923754,8.97416939,2594.1,2594.0,0.59683647]
[1724945924453,8.58881939,2594.1,2594.0,0.59689265]
[1724945924655,8.97416939,2594.1,2594.0,0.59689265]
[1724945924957,13.79274939,2594.1,2594.0,0.59689265]
[1724945925258,1.34884,2593.9,2593.8,0.00578592]
[1724945925554,3.71538,2593.9,2593.8,1.46115108]
[1724945925742,0.38538,2593.9,2593.8,1.46115108]
[1724945926144,4.59373601,2593.9,2593.8,1.46115108]
[1724945926357,5.55719601,2593.9,2593.8,0.60279737]
[1724945926748,8.88719601,2593.9,2593.8,0.60279737]
[1724945927150,7.92373601,2593.9,2593.8,0.60279737]
[1724945927544,7.92373601,2593.9,2593.8,0.00578592]
[1724945927757,9.65419601,2593.9,2593.8,0.00578592]
[1724945927958,9.65419601,2593.9,2593.8,0.60280811]
[1724945928458,9.65419601,2593.9,2593.8,0.00578592]
[1724945928845,14.47285601,2593.9,2593.8,0.00578592]
[1724945929153,20.47285601,2593.9,2593.8,0.00578592]
[1724945930457,20.47285601,2593.9,2593.1,3.2078]
[1724945930458,1.3492,2593.2,2593.1,3.2078]
[1724945930760,1.92699,2593.8,2593.1,3.8050704]
[1724945930761,3.2078,2593.5,2593.1,3.8050704]
[1724945930957,3.2078,2593.5,2593.2,1.45595552]
[1724945931257,3.2078,2593.5,2593.3,0.9827304]
[1724945931258,3.59324,2593.5,2593.3,0.9827304]
[1724945931446,4.25456395,2593.4,2593.3,0.38546]
[1724945931653,4.25456395,2593.4,2593.3,0.98261582]
[1724945932960,0.00578592,2593.7,2593.6,0.38542]
[1724945933263,0.00578592,2593.7,2593.6,0.98257582]
[1724945933451,0.00578592,2593.7,2593.6,4.83777582]
[1724945933950,0.00578592,2593.7,2593.6,5.69628707]
[1724945934151,0.00578592,2593.7,2593.6,4.83739253]
[1724945934348,0.00578592,2593.7,2593.6,5.80096253]
[1724945934551,0.00578592,2593.7,2593.6,4.83739253]
[1724945937463,0.00578592,2593.7,2593.6,4.83707407]
[1724945938157,0.00578592,2593.7,2593.6,0.98187407]
[1724945938551,0.00578592,2593.7,2593.6,0.59645407]
[1724945938752,0.00578592,2593.7,2593.6,0.98187407]
[1724945938948,0.00578592,2593.7,2593.6,4.83707407]
[1724945939657,0.00578592,2593.7,2593.6,0.98187407]
[1724945940058,0.00578592,2593.7,2593.6,4.83707407]
[1724945940559,0.00141522,2593.7,2593.6,5.8006383]
[1724945940958,5.22e-06,2593.7,2593.6,6.7642083]
[1724945941261,5.22e-06,2593.7,2593.6,15.5488382]
[1724945941756,3.2078,2594.5,2593.6,53.0727082]
[1724945941964,3.33,2594.8,2594.2,4.17114]
[1724945942159,3.71525,2594.8,2594.6,0.38527]
[1724945942360,4.46277485,2594.7,2594.5,0.38528]
[1724945942558,4.46277485,2594.7,2594.6,0.38528]
[1724945943259,3.94678592,2594.9,2594.8,0.38525]
[1724945943567,8.09013997,2594.9,2594.8,0.38525]
[1724945943864,7.35693997,2594.9,2594.7,0.98128378]
[1724945944067,7.35693997,2594.9,2594.7,0.38525]
[1724945944558,7.35693997,2594.9,2594.6,0.38527]
[1724945944763,10.68693997,2594.9,2594.6,0.38527]
[1724945945365,10.68693997,2594.9,2594.7,0.59612579]
[1724945945561,10.68693997,2594.9,2594.6,0.38527]
[1724945945757,10.10901091,2594.9,2594.7,0.59613276]
[1724945945961,10.10901091,2594.9,2594.4,0.86266346]
[1724945946160,10.10901091,2594.9,2594.4,0.00578592]
[1724945946161,0.38527,2594.7,2594.4,0.00578592]
[1724945946356,3.33,2594.7,2594.5,0.59618581]
[1724945946661,4.39658913,2594.6,2594.5,0.38529]
[1724945946865,5.96565686,2594.9,2594.6,0.38528]
[1724945947066,4.14155287,2594.8,2594.7,0.38526]
[1724945947269,2.63565686,2594.9,2594.7,3.8536]
[1724945947568,4.14155287,2594.8,2594.6,0.38527]
[1724945947959,4.14155287,2594.8,2594.7,0.38526]
[1724945948264,4.14155287,2594.8,2594.4,0.86288145]
[1724945948265,4.14155287,2594.8,2594.6,0.38527]
[1724945948568,4.14155287,2594.8,2594.4,0.86288145]
[1724945948764,4.14155287,2594.8,2594.5,0.59615239]
[1724945948960,4.14155287,2594.8,2594.6,0.59615239]
[1724945949156,4.14155287,2594.8,2594.4,0.00578592]
[1724945949361,4.14155287,2594.8,2594.5,0.59616386]
[1724945949662,4.14155287,2594.8,2594.7,0.38526]
[1724945950156,4.14155287,2594.8,2594.6,0.38527]
[1724945950358,4.14155287,2594.8,2594.6,0.59600224]
[1724945950564,4.14155287,2594.8,2594.6,0.38527]
[1724945951268,4.14155287,2594.8,2594.4,0.00578592]
[1724945951269,4.14155287,2594.8,2594.7,0.38526]
[1724945952368,4.14155287,2594.8,2594.6,0.38527]
[1724945952573,4.52680287,2594.8,2594.6,0.38527]
[1724945952868,4.14155287,2594.8,2594.6,0.38527]
[1724945953573,4.14155287,2594.8,2594.7,0.38526]
[1724945953873,4.52680287,2594.8,2594.6,0.38527]
[1724945954167,5.25140287,2594.8,2594.6,0.38527]
[1724945955677,4.86615287,2594.8,2594.7,0.38526]
[1724945956064,4.14155287,2594.8,2594.7,0.38526]
[1724945956265,0.00578592,2594.9,2594.8,0.38525]
[1724945956461,0.00578592,2594.9,2594.8,4.18881789]
[1724945956881,0.00578592,2594.9,2594.8,5.04543482]
[1724945957081,0.00578592,2594.9,2594.8,0.98101789]
[1724945957371,0.00578592,2594.9,2594.8,45.84543482]
[1724945957575,0.00578592,2594.9,2594.8,41.78101789]
[1724945958870,0.00578592,2594.9,2594.8,56.66215482]
[1724945959074,0.00578592,2594.9,2594.8,59.57387641]
[1724945959271,0.00578592,2594.9,2594.8,56.6832574]
[1724945959571,0.00578592,2594.9,2594.8,55.69758019]
[1724945959770,0.00578592,2594.9,2594.8,49.69758019]
[1724945959964,5.92e-06,2594.9,2594.8,60.53545181]
[1724945960170,0.76890592,2595.6,2595.4,0.38515]
[1724945960481,4.43094566,2595.5,2595.3,3.2078]
[1724945960874,4.43094566,2595.5,2595.4,0.38516]
[1724945961578,4.41094566,2595.5,2595.4,0.38516]
[1724945961792,4.41094566,2595.5,2595.4,0.98009608]
[1724945961985,4.41094566,2595.5,2595.3,0.98009608]
[1724945962179,4.41094566,2595.5,2595.3,0.38516]
[1724945962377,4.41094566,2595.5,2595.3,0.98009608]
[1724945962681,4.41094566,2595.5,2595.3,0.38516]
[1724945963175,4.41094566,2595.5,2595.2,0.59499663]
[1724945963374,4.41094566,2595.5,2595.3,0.38517]
[1724945964274,4.41094566,2595.5,2595.4,0.38516]
[1724945964478,4.41094566,2595.5,2595.3,0.38516]
[1724945964981,4.41094566,2595.5,2595.3,0.38517]
[1724945965174,4.41094566,2595.5,2595.4,0.38516]
[1724945965677,4.41094566,2595.5,2595.3,0.38516]
[1724945965878,4.41094566,2595.5,2595.3,0.38517]
[1724945966581,0.38517,2595.4,2595.1,0.3852]
[1724945966779,0.38517,2595.4,2595.1,0.38519]
[1724945967384,4.41094566,2595.5,2595.0,3.2078]
[1724945967385,0.38517,2595.3,2595.0,3.59301]
[1724945967583,0.38517,2595.3,2595.1,0.3852]
[1724945967584,4.75125081,2595.3,2595.1,0.3852]
[1724945967876,0.38519,2595.2,2595.0,3.2078]
[1724945968384,0.96297,2595.2,2594.8,4.191]
[1724945968574,0.38523,2595.0,2594.9,4.739]
[1724945968778,0.38523,2595.0,2594.7,8.33205]
[1724945969077,0.38523,2594.9,2594.7,8.33206]
[1724945969277,0.7559,2595.0,2594.8,0.38524]
[1724945969473,1.14112,2595.0,2594.8,0.38524]
[1724945970081,1.14112,2595.0,2594.8,0.38525]
[1724945970387,1.14112,2595.0,2594.7,7.9468]
[1724945970586,3.33,2595.3,2594.7,7.9468]
[1724945970884,0.38521,2595.1,2595.0,0.38522]
[1724945971186,0.38521,2595.1,2594.9,0.38522]
[1724945971485,4.15036803,2595.1,2595.0,0.38522]
[1724945971886,4.53556803,2595.1,2594.7,7.9468]
[1724945972183,4.63833079,2595.2,2595.0,0.38522]
[1724945972684,0.8059,2595.4,2595.3,0.38517]
[1724945972987,0.00578592,2595.7,2595.5,0.38514]
[1724945973281,0.00578592,2595.7,2595.4,0.38516]
[1724945973282,4.26149654,2595.5,2595.4,0.38516]
[1724945973479,4.26149654,2595.5,2595.3,0.38516]
[1724945973682,4.44213,2595.6,2595.3,0.38516]
[1724945973874,4.057,2595.6,2595.2,0.38518]
[1724945974076,0.38517,2595.4,2595.1,0.3852]
[1724945974277,0.38517,2595.4,2595.1,5.1242]
[1724945974484,4.04603425,2595.3,2595.1,5.1242]
[1724945974676,4.04603425,2595.3,2595.2,0.38519]
[1724945974881,4.04603425,2595.3,2595.1,5.12419]
[1724945975082,4.04603425,2595.3,2595.1,4.739]
[1724945975278,4.04603425,2595.3,2595.1,5.1242]
[1724945975484,4.04603425,2595.3,2595.2,0.38519]
[1724945975677,0.38514,2595.5,2595.2,0.38519]
[1724945975883,4.8102,2595.6,2595.1,5.1242]
[1724945976191,0.38518,2595.3,2595.1,4.739]
[1724945976394,0.38519,2595.2,2595.1,4.739]
[1724945976591,0.3852,2595.1,2594.9,4.191]
[1724945976886,4.85156735,2595.0,2594.7,3.59305]
[1724945977090,4.85156735,2595.0,2594.7,8.33205]
[1724945977392,0.7913,2595.0,2594.8,0.38524]
[1724945977890,1.17652,2595.0,2594.7,8.54173447]
[1724945978084,0.7913,2595.0,2594.8,0.59493447]
[1724945978276,1.17652,2595.0,2594.8,0.59493447]
[1724945978583,4.41548962,2594.9,2594.8,0.59493447]
[1724945979292,4.41548962,2594.9,2594.8,0.59536367]
[1724945979792,4.41548962,2594.9,2594.8,4.83421367]
[1724945979990,3.59298,2595.3,2595.0,0.38521]
[1724945980287,4.28249793,2595.2,2595.0,0.38521]
[1724945980493,4.28249793,2595.2,2595.1,0.3852]
[1724945980680,4.28249793,2595.2,2594.7,4.94747418]
[1724945980879,4.28249793,2595.2,2595.0,0.38522]
[1724945981084,4.66768793,2595.2,2594.9,0.38522]
[1724945981285,4.66768793,2595.2,2595.0,0.59552881]
[1724945981583,4.66768793,2595.2,2594.9,0.38522]
[1724945981786,4.66768793,2595.2,2595.0,0.59555963]
[1724945981994,4.66768793,2595.2,2594.9,0.38522]
[1724945982195,4.28249793,2595.2,2595.0,0.98082825]
[1724945982382,4.28249793,2595.2,2595.0,0.59561825]
[1724945982689,0.38522,2595.0,2594.8,0.85626987]
[1724945982891,5.34425354,2595.3,2594.9,1.45186763]
[1724945982892,0.96296,2595.3,2594.9,1.45186763]
[1724945983198,4.24213613,2595.1,2595.0,1.83696781]
[1724945983588,4.24213613,2595.2,2595.0,1.83696781]
[1724945983589,0.38519,2595.2,2595.0,1.83696781]
[1724945983792,0.38518,2595.3,2595.1,0.98079776]
[1724945983993,3.71516,2595.4,2595.2,0.59559776]
[1724945984307,4.04441048,2595.3,2595.2,0.38519]
[1724945984601,4.04441048,2595.3,2595.2,0.98071367]
[1724945984788,7.89721048,2595.3,2595.2,0.98071367]
[1724945984989,7.89721048,2595.3,2595.2,1.83686433]
[1724945985189,7.89721048,2595.3,2595.2,1.83693534]
[1724945985491,4.04441048,2595.3,2595.2,1.83704036]
[1724945986098,4.46667139,2595.4,2595.3,0.38516]
[1724945986299,1.13094,2595.5,2595.3,0.59560502]
[1724945986496,1.13094,2595.5,2595.4,0.59560502]
[1724945986688,0.7458,2595.5,2595.4,0.59560502]
[1724945986889,9.45041139,2595.5,2595.4,0.59560502]
[1724945988799,10.41327139,2595.5,2595.4,0.59560064]
[1724945988998,20.58393139,2595.5,2595.4,0.59560064]
[1724945989202,0.3852,2595.1,2595.0,0.98347418]
[1724945989401,0.3852,2595.2,2595.0,4.75088023]
[1724945989611,0.38519,2595.2,2595.1,2.43962843]
[1724945989907,5.13662786,2595.2,2595.1,1.45203117]
[1724945990202,4.17365786,2595.2,2595.1,1.45203117]
[1724945990400,8.02725786,2595.2,2595.1,2.82482843]
[1724945990591,8.02725786,2595.2,2595.1,2.43962843]
[1724945990789,8.02725786,2595.2,2595.1,1.45203117]
[1724945992002,0.3852,2595.1,2595.0,0.98759726]
[1724945992395,4.72755167,2595.1,2595.0,2.4403672]
[1724945992597,5.69056167,2595.1,2595.0,2.4403672]
[1724945992899,12.87416167,2595.1,2595.0,1.45276994]
[1724945993096,13.83717167,2595.1,2595.0,1.45276994]
[1724945993495,13.83717167,2595.1,2595.0,0.59597992]
[1724945993693,20.64837167,2595.1,2595.0,0.59597992]
[1724945994098,0.38528,2594.6,2594.4,1.37867318]
[1724945994294,0.38527,2594.7,2594.5,1.58381178]
[1724945994501,0.38526,2594.7,2594.6,1.96908178]
[1724945994711,0.8041,2594.8,2594.7,0.38526]
[1724945994905,0.8041,2594.8,2594.7,0.98147452]
[1724945995208,10.29935725,2594.8,2594.7,0.59621452]
[1724945995502,17.26247725,2594.8,2594.7,0.59621452]
[1724945996002,1.34852,2594.5,2594.4,0.00578592]
[1724945996198,4.67852,2594.5,2594.4,0.60210758]